[Event "Late-Titled-Tuesday-Blitz-July-09-2024"]
[Site "Chess.com"]
[Date "2024.07.09"]
[Round "9"]
[White "alexrustemov"]
[Black "Goryachkina"]
[Result "1-0"]
[WhiteElo "2877"]
[BlackElo "2715"]
[TimeControl "180+1"]
[EndTime "15:45:12 PDT"]
[Termination "alexrustemov won on time"]

1. d4 {[%clk 0:02:56.2]} 1... Nf6 {[%clk 0:02:59.9]} 2. Bg5 {[%clk 0:02:55.6]}
2... g6 {[%clk 0:02:55.6]} 3. Bxf6 {[%clk 0:02:55.3]} 3... exf6 {[%clk
0:02:55.9]} 4. c4 {[%clk 0:02:55.9]} 4... d5 {[%clk 0:02:55.7]} 5. cxd5 {[%clk
0:02:54.7]} 5... Qxd5 {[%clk 0:02:55.5]} 6. Nc3 {[%clk 0:02:55.3]} 6... Qd8
{[%clk 0:02:55.3]} 7. Nf3 {[%clk 0:02:55.6]} 7... Bd6 {[%clk 0:02:52.3]} 8. g3
{[%clk 0:02:55.5]} 8... O-O {[%clk 0:02:51.9]} 9. Bg2 {[%clk 0:02:56]} 9... c6
{[%clk 0:02:50]} 10. O-O {[%clk 0:02:56.3]} 10... Nd7 {[%clk 0:02:40.6]} 11. e4
{[%clk 0:02:55]} 11... Re8 {[%clk 0:02:35.4]} 12. Re1 {[%clk 0:02:52.8]} 12...
a6 {[%clk 0:02:26.5]} 13. Qc2 {[%clk 0:02:48.7]} 13... Nf8 {[%clk 0:02:23.4]}
14. h3 {[%clk 0:02:48]} 14... Bd7 {[%clk 0:02:19.9]} 15. Rad1 {[%clk 0:02:46.5]}
15... Qc7 {[%clk 0:02:15.7]} 16. e5 {[%clk 0:02:43]} 16... fxe5 {[%clk
0:02:13.4]} 17. Ne4 {[%clk 0:02:43]} 17... Kg7 {[%clk 0:01:52.5]} 18. Nxd6
{[%clk 0:02:35]} 18... Qxd6 {[%clk 0:01:52.3]} 19. Nxe5 {[%clk 0:02:30.2]} 19...
Be6 {[%clk 0:01:50.5]} 20. d5 {[%clk 0:02:08.2]} 20... Bxd5 {[%clk 0:01:44.7]}
21. Qc3 {[%clk 0:02:00.8]} 21... Qf6 {[%clk 0:01:39]} 22. Bxd5 {[%clk
0:01:56.2]} 22... cxd5 {[%clk 0:01:39.1]} 23. Rxd5 {[%clk 0:01:56.4]} 23... Rad8
{[%clk 0:01:35.6]} 24. Red1 {[%clk 0:01:50.1]} 24... Rxd5 {[%clk 0:00:56.7]} 25.
Rxd5 {[%clk 0:01:51]} 25... Kg8 {[%clk 0:00:50.3]} 26. Kg2 {[%clk 0:01:40.9]}
26... h5 {[%clk 0:00:49.4]} 27. h4 {[%clk 0:01:40.8]} 27... Qe6 {[%clk
0:00:42.6]} 28. Qd4 {[%clk 0:01:35.4]} 28... Qf6 {[%clk 0:00:33.3]} 29. Nf3
{[%clk 0:01:29]} 29... Qxd4 {[%clk 0:00:30.5]} 30. Nxd4 {[%clk 0:01:29.6]} 30...
Kg7 {[%clk 0:00:27]} 31. Kf3 {[%clk 0:01:27.9]} 31... Re1 {[%clk 0:00:26.6]} 32.
Rd6 {[%clk 0:01:24.2]} 32... Rb1 {[%clk 0:00:11.6]} 33. Rb6 {[%clk 0:01:22.7]}
33... Nd7 {[%clk 0:00:10]} 34. Rxb7 {[%clk 0:01:22.1]} 34... Ne5+ {[%clk
0:00:09.1]} 35. Ke2 {[%clk 0:01:18.4]} 35... Nc4 {[%clk 0:00:08.8]} 36. b3
{[%clk 0:01:03.7]} 36... Rb2+ {[%clk 0:00:09.1]} 37. Ke1 {[%clk 0:00:55.2]}
37... Ne5 {[%clk 0:00:08.6]} 38. Ne6+ {[%clk 0:00:47.1]} 38... Kf6 {[%clk
0:00:08.3]} 39. Nf4 {[%clk 0:00:47.5]} 39... Rxa2 {[%clk 0:00:08.2]} 40. Kf1
{[%clk 0:00:37.7]} 40... Ng4 {[%clk 0:00:07.8]} 41. Nh3 {[%clk 0:00:37.8]} 41...
Ke6 {[%clk 0:00:05.7]} 42. Ng5+ {[%clk 0:00:37]} 42... Kd5 {[%clk 0:00:05.6]}
43. Rxf7 {[%clk 0:00:37.3]} 43... Rb2 {[%clk 0:00:05.7]} 44. Nh3 {[%clk
0:00:24.4]} 44... Rxb3 {[%clk 0:00:05.6]} 45. Nf4+ {[%clk 0:00:24.7]} 45... Kc5
{[%clk 0:00:05.6]} 46. Nxg6 {[%clk 0:00:24.3]} 46... a5 {[%clk 0:00:05.8]} 47.
Ra7 {[%clk 0:00:23.6]} 47... Ra3 {[%clk 0:00:04.7]} 48. Nf4 {[%clk 0:00:23.4]}
48... a4 {[%clk 0:00:04.8]} 49. Kg2 {[%clk 0:00:20.9]} 49... Ra2 {[%clk
0:00:05.1]} 50. Kf3 {[%clk 0:00:13.4]} 50... Rxf2+ {[%clk 0:00:05]} 51. Ke4
{[%clk 0:00:13.8]} 51... Ra2 {[%clk 0:00:05.2]} 52. Nxh5 {[%clk 0:00:13]} 52...
a3 {[%clk 0:00:05.7]} 53. Kf4 {[%clk 0:00:12.5]} 53... Nf2 {[%clk 0:00:05.2]}
54. g4 {[%clk 0:00:12.6]} 54... Kb4 {[%clk 0:00:04.5]} 55. g5 {[%clk 0:00:12.7]}
55... Rc2 {[%clk 0:00:04.4]} 56. Nf6 {[%clk 0:00:11.8]} 56... Nd3+ {[%clk
0:00:03.9]} 57. Kf5 {[%clk 0:00:10.9]} 57... Nc5 {[%clk 0:00:04.3]} 58. Nd5+
{[%clk 0:00:09.2]} 58... Kb5 {[%clk 0:00:04.1]} 59. Rxa3 {[%clk 0:00:07.9]}
59... Rf2+ {[%clk 0:00:03]} 60. Kg6 {[%clk 0:00:07.7]} 60... Rd2 {[%clk
0:00:03]} 61. Nf4 {[%clk 0:00:07.2]} 61... Rd4 {[%clk 0:00:03]} 62. Rf3 {[%clk
0:00:06.6]} 62... Ne4 {[%clk 0:00:02.6]} 63. h5 {[%clk 0:00:05.7]} 63... Nd2
{[%clk 0:00:02.9]} 64. Rf2 {[%clk 0:00:05.4]} 64... Ne4 {[%clk 0:00:03.2]} 65.
Rb2+ {[%clk 0:00:05.6]} 1-0

[Event "Late-Titled-Tuesday-Blitz-July-09-2024"]
[Site "Chess.com"]
[Date "2024.07.09"]
[Round "9"]
[White "LidongW"]
[Black "Gyulamiryan-koryun"]
[Result "1-0"]
[WhiteElo "2269"]
[BlackElo "1934"]
[TimeControl "180+1"]
[EndTime "15:45:14 PDT"]
[Termination "LidongW won on time"]

1. e4 {[%clk 0:02:56.9]} 1... e5 {[%clk 0:02:59.2]} 2. Nf3 {[%clk 0:02:56.7]}
2... Nc6 {[%clk 0:02:59.2]} 3. Bc4 {[%clk 0:02:57.3]} 3... Nf6 {[%clk
0:02:59.1]} 4. d3 {[%clk 0:02:57.7]} 4... Be7 {[%clk 0:02:59.3]} 5. O-O {[%clk
0:02:58]} 5... O-O {[%clk 0:02:59.3]} 6. Re1 {[%clk 0:02:58.2]} 6... d6 {[%clk
0:02:59.5]} 7. c3 {[%clk 0:02:58.2]} 7... Be6 {[%clk 0:02:59.1]} 8. Bb5 {[%clk
0:02:56.7]} 8... a6 {[%clk 0:02:55.8]} 9. Ba4 {[%clk 0:02:56.5]} 9... b5 {[%clk
0:02:54.9]} 10. Bc2 {[%clk 0:02:56.5]} 10... Qd7 {[%clk 0:02:54.1]} 11. Nbd2
{[%clk 0:02:54.9]} 11... d5 {[%clk 0:02:52.2]} 12. exd5 {[%clk 0:02:40.4]} 12...
Bxd5 {[%clk 0:02:51.6]} 13. Nxe5 {[%clk 0:02:22.3]} 13... Nxe5 {[%clk
0:02:51.3]} 14. Rxe5 {[%clk 0:02:23.2]} 14... Bd6 {[%clk 0:02:51]} 15. Re1
{[%clk 0:02:23.6]} 15... Ng4 {[%clk 0:02:45.1]} 16. Nf1 {[%clk 0:02:19.4]} 16...
Qf5 {[%clk 0:02:34.1]} 17. Be3 {[%clk 0:02:03.8]} 17... Qg6 {[%clk 0:02:27.5]}
18. d4 {[%clk 0:01:54.5]} 18... Qh5 {[%clk 0:02:08.9]} 19. h3 {[%clk 0:01:45.4]}
19... Nf6 {[%clk 0:02:07.1]} 20. Qxh5 {[%clk 0:01:39.1]} 20... Nxh5 {[%clk
0:02:06.8]} 21. g3 {[%clk 0:01:31.6]} 21... f5 {[%clk 0:01:47.2]} 22. Bd2 {[%clk
0:01:31.3]} 22... f4 {[%clk 0:01:44]} 23. g4 {[%clk 0:01:31.4]} 23... Nf6 {[%clk
0:01:41.9]} 24. a3 {[%clk 0:01:25.3]} 24... g5 {[%clk 0:01:41.2]} 25. Nh2 {[%clk
0:01:17.2]} 25... Rae8 {[%clk 0:01:36.8]} 26. f3 {[%clk 0:01:16.3]} 26... c5
{[%clk 0:01:32.7]} 27. Kf2 {[%clk 0:01:10.9]} 27... cxd4 {[%clk 0:01:28.6]} 28.
cxd4 {[%clk 0:01:10.6]} 28... Rc8 {[%clk 0:01:25.8]} 29. Bd3 {[%clk 0:01:08.6]}
29... Bc4 {[%clk 0:01:25.3]} 30. Bf5 {[%clk 0:01:06]} 30... Rc7 {[%clk
0:01:12.5]} 31. Nf1 {[%clk 0:01:05.5]} 31... Nd5 {[%clk 0:01:10.3]} 32. Re6
{[%clk 0:00:56.7]} 32... Rc6 {[%clk 0:00:50.6]} 33. Rae1 {[%clk 0:00:47.6]}
33... Ne3 {[%clk 0:00:47.5]} 34. Bxe3 {[%clk 0:00:46]} 34... fxe3+ {[%clk
0:00:41.8]} 35. R6xe3 {[%clk 0:00:46.9]} 35... Bf4 {[%clk 0:00:31.6]} 36. Re7
{[%clk 0:00:42.4]} 36... Bf7 {[%clk 0:00:30.2]} 37. Ne3 {[%clk 0:00:37.5]} 37...
Rd6 {[%clk 0:00:25.6]} 38. Rd1 {[%clk 0:00:35.7]} 38... Rfd8 {[%clk 0:00:24.3]}
39. Bxh7+ {[%clk 0:00:30.6]} 39... Kf8 {[%clk 0:00:22.9]} 40. Ra7 {[%clk
0:00:28.5]} 40... Rxd4 {[%clk 0:00:22.1]} 41. Rxd4 {[%clk 0:00:26.3]} 41... Rxd4
{[%clk 0:00:22]} 42. Nf1 {[%clk 0:00:26.8]} 42... Rc4 {[%clk 0:00:20.8]} 43.
Rxa6 {[%clk 0:00:26]} 43... Rc2+ {[%clk 0:00:20.3]} 44. Bxc2 {[%clk 0:00:25.5]}
44... Bc4 {[%clk 0:00:18.3]} 45. Ne3 {[%clk 0:00:25.3]} 45... Bxe3+ {[%clk
0:00:15]} 46. Kxe3 {[%clk 0:00:25.2]} 46... b4 {[%clk 0:00:15.9]} 47. axb4
{[%clk 0:00:25.2]} 47... Bxa6 {[%clk 0:00:15.2]} 48. Ba4 {[%clk 0:00:23.8]}
48... Ke7 {[%clk 0:00:14.1]} 49. b5 {[%clk 0:00:24.1]} 49... Bb7 {[%clk
0:00:14.4]} 50. f4 {[%clk 0:00:21.7]} 50... Kf6 {[%clk 0:00:13.8]} 51. fxg5+
{[%clk 0:00:18.5]} 51... Kxg5 {[%clk 0:00:13.9]} 52. b6 {[%clk 0:00:15.5]} 52...
Kh4 {[%clk 0:00:13.6]} 53. Kd4 {[%clk 0:00:15.5]} 53... Kxh3 {[%clk 0:00:13.6]}
54. Kc5 {[%clk 0:00:15.9]} 54... Kxg4 {[%clk 0:00:13.5]} 55. Bc6 {[%clk
0:00:16.5]} 55... Ba6 {[%clk 0:00:06.9]} 56. b7 {[%clk 0:00:16.6]} 56... Bxb7
{[%clk 0:00:06.9]} 57. Bxb7 {[%clk 0:00:17.5]} 57... Kf5 {[%clk 0:00:07.3]} 58.
b4 {[%clk 0:00:18.1]} 58... Ke6 {[%clk 0:00:08]} 59. Kc6 {[%clk 0:00:18.5]}
59... Ke7 {[%clk 0:00:07.6]} 60. Kc7 {[%clk 0:00:18.2]} 60... Ke6 {[%clk
0:00:07.7]} 61. Bc6 {[%clk 0:00:18.2]} 61... Ke5 {[%clk 0:00:06.3]} 62. b5
{[%clk 0:00:18.6]} 62... Kd4 {[%clk 0:00:06.5]} 63. b6 {[%clk 0:00:19.5]} 63...
Kc5 {[%clk 0:00:07.3]} 64. b7 {[%clk 0:00:19.8]} 64... Kd4 {[%clk 0:00:07.4]}
65. b8=Q {[%clk 0:00:20.7]} 65... Ke5 {[%clk 0:00:06.3]} 66. Qb6 {[%clk
0:00:21.6]} 66... Ke6 {[%clk 0:00:05.2]} 67. Bh1+ {[%clk 0:00:20.9]} 67... Ke5
{[%clk 0:00:05.1]} 68. Kd7 {[%clk 0:00:20.1]} 68... Kf4 {[%clk 0:00:04.1]} 69.
Ke6 {[%clk 0:00:19.8]} 69... Kg3 {[%clk 0:00:03.7]} 70. Kf5 {[%clk 0:00:20]}
70... Kh2 {[%clk 0:00:03.8]} 71. Qe3 {[%clk 0:00:17.2]} 1-0

[Event "Late-Titled-Tuesday-Blitz-July-09-2024"]
[Site "Chess.com"]
[Date "2024.07.09"]
[Round "9"]
[White "PNEPaul"]
[Black "shirovin"]
[Result "1-0"]
[WhiteElo "1907"]
[BlackElo "2074"]
[TimeControl "180+1"]
[EndTime "15:45:28 PDT"]
[Termination "PNEPaul won by checkmate"]

1. e4 {[%clk 0:03:00.9]} 1... Nf6 {[%clk 0:02:59.2]} 2. Bc4 {[%clk 0:03:00]}
2... d5 {[%clk 0:02:56.7]} 3. exd5 {[%clk 0:02:59.1]} 3... Nxd5 {[%clk
0:02:56.2]} 4. Nf3 {[%clk 0:02:59]} 4... Bg4 {[%clk 0:02:54.8]} 5. Be2 {[%clk
0:02:58.4]} 5... e6 {[%clk 0:02:49]} 6. O-O {[%clk 0:02:58.1]} 6... Bd6 {[%clk
0:02:46.9]} 7. h3 {[%clk 0:02:56.6]} 7... Bh5 {[%clk 0:02:45.5]} 8. d4 {[%clk
0:02:55.9]} 8... Nc6 {[%clk 0:02:32.1]} 9. c4 {[%clk 0:02:52.8]} 9... Nf6 {[%clk
0:02:30.1]} 10. Bg5 {[%clk 0:02:50.9]} 10... Be7 {[%clk 0:02:27.9]} 11. Be3
{[%clk 0:02:39.2]} 11... h6 {[%clk 0:02:20.6]} 12. Nc3 {[%clk 0:02:36.9]} 12...
Qd7 {[%clk 0:02:14.6]} 13. d5 {[%clk 0:02:33.8]} 13... exd5 {[%clk 0:02:06]} 14.
cxd5 {[%clk 0:02:33]} 14... Nb4 {[%clk 0:02:00.4]} 15. Ne5 {[%clk 0:02:03.1]}
15... Bxe2 {[%clk 0:01:52.6]} 16. Qxe2 {[%clk 0:02:02.3]} 16... Qd6 {[%clk
0:01:36.6]} 17. Nc4 {[%clk 0:01:37.8]} 17... Qd7 {[%clk 0:01:32.9]} 18. Ne5
{[%clk 0:01:37.4]} 18... Qf5 {[%clk 0:01:24.7]} 19. Qb5+ {[%clk 0:01:31.2]}
19... c6 {[%clk 0:01:21.7]} 20. Qxb7 {[%clk 0:01:30]} 20... O-O {[%clk
0:01:16.5]} 21. Nxc6 {[%clk 0:01:20.5]} 21... Nxc6 {[%clk 0:00:52.1]} 22. dxc6
{[%clk 0:01:15.2]} 22... Bd6 {[%clk 0:00:47.1]} 23. Qb5 {[%clk 0:00:54]} 23...
Qe6 {[%clk 0:00:42.7]} 24. Rae1 {[%clk 0:00:33.3]} 24... Rab8 {[%clk 0:00:41.6]}
25. Qe2 {[%clk 0:00:30.3]} 25... Qe5 {[%clk 0:00:36.8]} 26. g3 {[%clk
0:00:29.9]} 26... h5 {[%clk 0:00:31.7]} 27. Bxa7 {[%clk 0:00:29.5]} 27... Rb4
{[%clk 0:00:27.3]} 28. Qxe5 {[%clk 0:00:28.1]} 28... Bxe5 {[%clk 0:00:24.9]} 29.
Rxe5 {[%clk 0:00:27.8]} 29... Rc8 {[%clk 0:00:23.6]} 30. Nd5 {[%clk 0:00:18.6]}
30... Rxb2 {[%clk 0:00:19.5]} 31. Nxf6+ {[%clk 0:00:16.4]} 31... gxf6 {[%clk
0:00:18.3]} 32. Rc5 {[%clk 0:00:16.4]} 32... Rxa2 {[%clk 0:00:16.9]} 33. Bb6
{[%clk 0:00:15.7]} 33... Rb2 {[%clk 0:00:16.2]} 34. Ba5 {[%clk 0:00:15.6]} 34...
Ra2 {[%clk 0:00:15.5]} 35. Bc3 {[%clk 0:00:13.6]} 35... Rc2 {[%clk 0:00:14.5]}
36. Bd4 {[%clk 0:00:13.8]} 36... Rxc5 {[%clk 0:00:12.1]} 37. Bxc5 {[%clk
0:00:13.7]} 37... Rxc6 {[%clk 0:00:12.8]} 38. Be3 {[%clk 0:00:13.6]} 38... Kg7
{[%clk 0:00:13.4]} 39. Rc1 {[%clk 0:00:13.3]} 39... Kg6 {[%clk 0:00:13.8]} 40.
Kg2 {[%clk 0:00:13.6]} 40... Re6 {[%clk 0:00:12.7]} 41. h4 {[%clk 0:00:13.7]}
41... Re4 {[%clk 0:00:12.2]} 42. Rc5 {[%clk 0:00:12.2]} 42... Ra4 {[%clk
0:00:12.5]} 43. Rc2 {[%clk 0:00:11.4]} 43... Rb4 {[%clk 0:00:11.8]} 44. Bf4
{[%clk 0:00:10.8]} 44... Ra4 {[%clk 0:00:11.2]} 45. Rd2 {[%clk 0:00:10.6]} 45...
Rb4 {[%clk 0:00:11.4]} 46. Rd6 {[%clk 0:00:09.7]} 46... Ra4 {[%clk 0:00:11.2]}
47. Be3 {[%clk 0:00:09.7]} 47... Rb4 {[%clk 0:00:10.7]} 48. Bd4 {[%clk
0:00:09.5]} 48... Rb5 {[%clk 0:00:07.4]} 49. Rxf6+ {[%clk 0:00:08.9]} 49... Kh7
{[%clk 0:00:06.1]} 50. Rf4 {[%clk 0:00:08.4]} 50... Kg6 {[%clk 0:00:05.2]} 51.
Be3 {[%clk 0:00:08]} 51... Rb7 {[%clk 0:00:04]} 52. Rd4 {[%clk 0:00:07.8]} 52...
Kg7 {[%clk 0:00:03.1]} 53. Rd6 {[%clk 0:00:07.2]} 53... f6 {[%clk 0:00:02.8]}
54. Bd4 {[%clk 0:00:06.8]} 54... Rf7 {[%clk 0:00:01.9]} 55. Rxf6 {[%clk
0:00:06.3]} 55... Rxf6 {[%clk 0:00:01]} 56. Bxf6+ {[%clk 0:00:06.1]} 56... Kxf6
{[%clk 0:00:01.6]} 57. Kf3 {[%clk 0:00:06.1]} 57... Kf5 {[%clk 0:00:02.3]} 58.
Kg2 {[%clk 0:00:04.7]} 58... Kg4 {[%clk 0:00:02.6]} 59. f3+ {[%clk 0:00:04.8]}
59... Kf5 {[%clk 0:00:03]} 60. Kf2 {[%clk 0:00:04.9]} 60... Ke5 {[%clk
0:00:02.5]} 61. Ke3 {[%clk 0:00:04.9]} 61... Kf5 {[%clk 0:00:03]} 62. Kd4 {[%clk
0:00:04.8]} 62... Kf6 {[%clk 0:00:02.8]} 63. Ke4 {[%clk 0:00:04.9]} 63... Ke6
{[%clk 0:00:02.9]} 64. Kf4 {[%clk 0:00:04.9]} 64... Kf6 {[%clk 0:00:03.4]} 65.
g4 {[%clk 0:00:05.3]} 65... Kg6 {[%clk 0:00:03.6]} 66. Ke4 {[%clk 0:00:04.7]}
66... Kh6 {[%clk 0:00:02.7]} 67. Kf5 {[%clk 0:00:04.5]} 67... hxg4 {[%clk
0:00:02.8]} 68. fxg4 {[%clk 0:00:04.3]} 68... Kh7 {[%clk 0:00:03.7]} 69. g5
{[%clk 0:00:04.1]} 69... Kg7 {[%clk 0:00:04]} 70. Ke6 {[%clk 0:00:03.6]} 70...
Kh7 {[%clk 0:00:04.9]} 71. Kf7 {[%clk 0:00:03.2]} 71... Kh8 {[%clk 0:00:04.8]}
72. h5 {[%clk 0:00:02]} 72... Kh7 {[%clk 0:00:05]} 73. g6+ {[%clk 0:00:02.2]}
73... Kh6 {[%clk 0:00:05.3]} 74. g7 {[%clk 0:00:02.4]} 74... Kxh5 {[%clk
0:00:04.6]} 75. g8=Q {[%clk 0:00:02.5]} 75... Kh4 {[%clk 0:00:05.2]} 76. Kf6
{[%clk 0:00:02.9]} 76... Kh3 {[%clk 0:00:05.7]} 77. Kf5 {[%clk 0:00:03.3]} 77...
Kh4 {[%clk 0:00:05.2]} 78. Qg4# {[%clk 0:00:02.3]} 1-0

[Event "Late-Titled-Tuesday-Blitz-July-09-2024"]
[Site "Chess.com"]
[Date "2024.07.09"]
[Round "9"]
[White "carokannlover213"]
[Black "Kombinator01"]
[Result "1-0"]
[WhiteElo "2712"]
[BlackElo "2482"]
[TimeControl "180+1"]
[EndTime "15:45:32 PDT"]
[Termination "carokannlover213 won by resignation"]

1. Nf3 {[%clk 0:03:00.9]} 1... d5 {[%clk 0:02:59.5]} 2. g3 {[%clk 0:03:00]} 2...
Nf6 {[%clk 0:02:59.4]} 3. Bg2 {[%clk 0:03:00.9]} 3... e6 {[%clk 0:02:59.4]} 4.
O-O {[%clk 0:02:57.2]} 4... Bd6 {[%clk 0:02:55.3]} 5. c4 {[%clk 0:02:53.6]} 5...
O-O {[%clk 0:02:51.8]} 6. b3 {[%clk 0:02:50.4]} 6... dxc4 {[%clk 0:02:47]} 7.
bxc4 {[%clk 0:02:47.3]} 7... e5 {[%clk 0:02:47.6]} 8. Bb2 {[%clk 0:02:35.9]}
8... Nc6 {[%clk 0:02:47.7]} 9. Ng5 {[%clk 0:02:25.5]} 9... h6 {[%clk 0:02:45.2]}
10. Ne4 {[%clk 0:02:24.9]} 10... Nxe4 {[%clk 0:02:45.5]} 11. Bxe4 {[%clk
0:02:25.7]} 11... Be6 {[%clk 0:02:39.2]} 12. Qc1 {[%clk 0:02:18.4]} 12... Nd4
{[%clk 0:02:26]} 13. Bxd4 {[%clk 0:01:57.4]} 13... exd4 {[%clk 0:02:26.9]} 14.
d3 {[%clk 0:01:57.7]} 14... Rb8 {[%clk 0:02:22.2]} 15. Nd2 {[%clk 0:01:56.7]}
15... Re8 {[%clk 0:02:09]} 16. Rb1 {[%clk 0:01:54.6]} 16... b6 {[%clk
0:02:06.6]} 17. Re1 {[%clk 0:01:52.4]} 17... c5 {[%clk 0:02:03.2]} 18. a4 {[%clk
0:01:50.7]} 18... Qd7 {[%clk 0:02:01.8]} 19. Qa3 {[%clk 0:01:48.4]} 19... h5
{[%clk 0:01:55.9]} 20. a5 {[%clk 0:01:39.1]} 20... h4 {[%clk 0:01:54.6]} 21.
axb6 {[%clk 0:01:38.7]} 21... axb6 {[%clk 0:01:52.5]} 22. Ra1 {[%clk 0:01:39.3]}
22... hxg3 {[%clk 0:01:49.6]} 23. hxg3 {[%clk 0:01:40.2]} 23... f5 {[%clk
0:01:50]} 24. Bg2 {[%clk 0:01:30.4]} 24... f4 {[%clk 0:01:49.8]} 25. Ne4 {[%clk
0:01:30.3]} 25... fxg3 {[%clk 0:01:48.4]} 26. fxg3 {[%clk 0:01:30.5]} 26... Qc7
{[%clk 0:01:37.5]} 27. Kh2 {[%clk 0:01:12.8]} 27... Bf5 {[%clk 0:01:36.4]} 28.
Qa7 {[%clk 0:01:05]} 28... Bxe4 {[%clk 0:01:20.7]} 29. Qxc7 {[%clk 0:01:04.3]}
29... Bxc7 {[%clk 0:01:21.6]} 30. Bxe4 {[%clk 0:01:04.5]} 30... Re7 {[%clk
0:01:15.1]} 31. Kg2 {[%clk 0:01:03.8]} 31... Be5 {[%clk 0:01:09]} 32. Rh1 {[%clk
0:00:56.8]} 32... Kf7 {[%clk 0:01:07]} 33. Bd5+ {[%clk 0:00:50.5]} 33... Kg6
{[%clk 0:01:06.3]} 34. Raf1 {[%clk 0:00:50.5]} 34... Bf6 {[%clk 0:01:05.3]} 35.
Be4+ {[%clk 0:00:49.6]} 35... Kf7 {[%clk 0:01:04.6]} 36. g4 {[%clk 0:00:50.2]}
36... Re5 {[%clk 0:01:04.4]} 37. Ra1 {[%clk 0:00:46.4]} 37... Rbe8 {[%clk
0:01:02]} 38. Ra7+ {[%clk 0:00:44.6]} 38... R8e7 {[%clk 0:01:00.5]} 39. Ra6
{[%clk 0:00:35.3]} 39... Rxe4 {[%clk 0:00:58]} 40. dxe4 {[%clk 0:00:36.2]} 40...
Rxe4 {[%clk 0:00:58.6]} 41. Kf2 {[%clk 0:00:31.8]} 41... Rf4+ {[%clk 0:00:58.6]}
42. Kg3 {[%clk 0:00:29]} 42... Re4 {[%clk 0:00:48.6]} 43. Kf2 {[%clk 0:00:13.3]}
43... Rxg4 {[%clk 0:00:47.3]} 44. Rxb6 {[%clk 0:00:11.8]} 44... Rf4+ {[%clk
0:00:47.5]} 45. Kg3 {[%clk 0:00:11]} 45... Re4 {[%clk 0:00:47.6]} 46. Kf2 {[%clk
0:00:10.7]} 46... Re5 {[%clk 0:00:43.8]} 47. Rb7+ {[%clk 0:00:10.6]} 47... Kg6
{[%clk 0:00:43.5]} 48. Rh3 {[%clk 0:00:10.8]} 48... Bg5 {[%clk 0:00:38.7]} 49.
Rf3 {[%clk 0:00:10.2]} 49... Bh4+ {[%clk 0:00:37.5]} 50. Kf1 {[%clk 0:00:09.8]}
50... Bf6 {[%clk 0:00:35.4]} 51. Rg3+ {[%clk 0:00:09.5]} 51... Kf5 {[%clk
0:00:35.5]} 52. Rf3+ {[%clk 0:00:10.4]} 52... Ke6 {[%clk 0:00:33.7]} 53. Rb6+
{[%clk 0:00:10.4]} 53... Kf7 {[%clk 0:00:32.3]} 54. Rc6 {[%clk 0:00:10.6]} 54...
Rh5 {[%clk 0:00:30.6]} 55. Kg2 {[%clk 0:00:09.9]} 55... Kg6 {[%clk 0:00:30.2]}
56. Rg3+ {[%clk 0:00:09.7]} 56... Kf5 {[%clk 0:00:29.9]} 57. Rf3+ {[%clk
0:00:09.9]} 57... Kg6 {[%clk 0:00:26.4]} 58. Re6 {[%clk 0:00:08.2]} 58... Rh8
{[%clk 0:00:22.5]} 59. Re4 {[%clk 0:00:08.2]} 59... Ra8 {[%clk 0:00:20.9]} 60.
Rg4+ {[%clk 0:00:07.4]} 60... Kf7 {[%clk 0:00:20.9]} 61. Rf5 {[%clk 0:00:07.8]}
61... Ra2 {[%clk 0:00:20.1]} 62. Kf3 {[%clk 0:00:04.8]} 62... Ra3+ {[%clk
0:00:20.1]} 63. Kf2 {[%clk 0:00:05.1]} 63... d3 {[%clk 0:00:18.9]} 64. exd3
{[%clk 0:00:04.4]} 64... Ra5 {[%clk 0:00:16.7]} 65. Ke3 {[%clk 0:00:03.9]} 65...
Ke6 {[%clk 0:00:17.2]} 66. Rf3 {[%clk 0:00:03]} 66... Bd4+ {[%clk 0:00:17.3]}
67. Rxd4 {[%clk 0:00:03.1]} 67... cxd4+ {[%clk 0:00:18.2]} 68. Kxd4 {[%clk
0:00:04]} 68... g5 {[%clk 0:00:18.5]} 69. Ke4 {[%clk 0:00:03.8]} 69... g4 {[%clk
0:00:18.2]} 70. Rg3 {[%clk 0:00:03.9]} 70... Rg5 {[%clk 0:00:15.5]} 71. Kf4
{[%clk 0:00:04.2]} 71... Rf5+ {[%clk 0:00:16]} 72. Ke4 {[%clk 0:00:04.3]} 72...
Rg5 {[%clk 0:00:16]} 73. d4 {[%clk 0:00:04.9]} 73... Kf6 {[%clk 0:00:15.6]} 74.
Kf4 {[%clk 0:00:05.1]} 74... Rf5+ {[%clk 0:00:16.1]} 75. Kxg4 {[%clk 0:00:05.4]}
75... Ke6 {[%clk 0:00:14.2]} 76. Re3+ {[%clk 0:00:05.1]} 76... Kf6 {[%clk
0:00:14.5]} 77. Rf3 {[%clk 0:00:05.7]} 1-0